fUSD/lending_fUSD_20250514
["ID","MTS","AMOUNT","RATE_DAILY","PERIOD"]
[361091259,1747248641387,-364.69,0.00010086,2]
[361091260,1747248641397,-364.69,0.00010088,2]
[361091261,1747248641407,-364.69,0.00010091,2]
[361091262,1747248641417,-364.69,0.00010094,2]
[361091263,1747248641427,-364.69,0.00010096,2]
[361091264,1747248641438,-364.69,0.00010099,2]
[361091265,1747248641448,-364.69,0.00010102,2]
[361091266,1747248641458,-364.69,0.00010104,2]
[361091267,1747248641468,-400.0,0.00011219,2]
[361091268,1747248641478,-400.0,0.00011219,2]
[361091269,1747248641489,-400.0,0.0001122,2]
[361091270,1747248641499,-400.0,0.0001122,2]
[361091271,1747248641509,-400.0,0.00011221,2]
[361091272,1747248641519,-400.0,0.00011221,2]
[361091273,1747248641529,-138.88356252,0.00011222,2]
[361091274,1747248641540,-1683.69,0.00011222,2]
[361091275,1747248641550,-494.01,0.00011222,2]
[361091276,1747248641560,-400.0,0.00011222,2]
[361091277,1747248641571,-400.0,0.00011222,2]
[361091278,1747248641580,-594.15,0.00011222,2]
[361091279,1747248641590,-400.0,0.00011222,2]
[361091280,1747248641600,-400.0,0.00011222,2]
[361091281,1747248641610,-400.0,0.00011222,2]
[361091282,1747248641620,-400.0,0.00011222,2]
[361091283,1747248641630,-400.0,0.00011222,2]
[361091284,1747248641639,-400.0,0.00011222,2]
[361091285,1747248641649,-400.0,0.00011222,2]
[361091286,1747248641659,-400.0,0.00011222,2]
[361091287,1747248641669,-400.0,0.00011222,2]
[361091288,1747248641680,-400.0,0.00011222,2]
[361091289,1747248641689,-400.0,0.00011222,2]
[361091290,1747248641703,-400.0,0.00011222,2]
[361091291,1747248641713,-400.0,0.00011222,2]
[361091292,1747248641723,-400.0,0.00011222,2]
[361091293,1747248641733,-400.0,0.00011222,2]
[361091294,1747248641743,-472.04,0.00011222,2]
[361091295,1747248641752,-400.0,0.00011222,2]
[361091296,1747248641762,-458.34,0.00011222,2]
[361091297,1747248641772,-451.27850082,0.00011222,2]
[361091298,1747248641781,-400.0,0.00011222,2]
[361091299,1747248641792,-400.0,0.00011222,2]
[361091300,1747248641801,-500.0,0.00011222,2]
[361091301,1747248641811,-500.0,0.00011222,2]
[361091302,1747248641822,-400.0,0.00011222,2]
[361091303,1747248641832,-400.0,0.00011222,2]
[361091304,1747248641841,-400.0,0.00011222,2]
[361091305,1747248641851,-400.0,0.00011222,2]
[361091306,1747248641861,-400.0,0.00011222,2]
[361091307,1747248641871,-400.0,0.00011222,2]
[361091308,1747248641881,-400.87407084,0.00011222,2]
[361091309,1747248641891,-400.0,0.00011222,2]
[361091310,1747248641901,-400.0,0.00011222,2]
[361091311,1747248641911,-726.47,0.00011222,2]
[361091312,1747248641921,-400.0,0.00011222,2]
[361091313,1747248641931,-400.0,0.00011222,2]
[361091314,1747248641941,-334.13236738,0.00011222,2]
[361091315,1747248641951,-400.0,0.00011222,2]
[361091316,1747248641961,-400.0,0.00011222,2]
[361091317,1747248641971,-400.0,0.00011222,2]
[361091318,1747248641981,-400.0,0.00011222,2]
[361091319,1747248641991,-400.0,0.00011222,2]
[361091320,1747248642003,-501.89730244,0.00011222,2]
[361091321,1747248642013,-928.06,0.00011222,2]
[361091322,1747248642023,-400.0,0.00011222,2]
[361091323,1747248642033,-400.0,0.00011222,2]
[361091324,1747248642043,-1031.29,0.00011222,2]
[361091325,1747248642053,-400.0,0.00011222,2]
[361091326,1747248642063,-400.0,0.00011222,2]
[361091327,1747248642073,-260.79822745,0.00011222,2]
[361091328,1747248642083,-400.0,0.00011222,2]
[361091329,1747248642093,-400.0,0.00011222,2]
[361091330,1747248642103,-463.42,0.00011222,2]
[361091331,1747248642113,-400.0,0.00011222,2]
[361091332,1747248642123,-400.0,0.00011222,2]
[361091333,1747248642133,-400.0,0.00011222,2]
[361091334,1747248642143,-400.0,0.00011222,2]
[361091335,1747248642152,-400.0,0.00011222,2]
[361091336,1747248642162,-400.0,0.00011222,2]
[361091337,1747248642172,-464.48,0.00011222,2]
[361091338,1747248642181,-482.26,0.00011222,2]
[361091339,1747248642191,-400.0,0.00011222,2]
[361091340,1747248642200,-426.84,0.00011222,2]
[361091341,1747248642211,-400.0,0.00011222,2]
[361091342,1747248642220,-204.26434761,0.00011222,2]
[361091343,1747248642230,-400.0,0.00011222,2]
[361091344,1747248642239,-403.66128293,0.00011222,2]
[361091345,1747248642249,-400.0,0.00011222,2]
[361091346,1747248642259,-400.0,0.00011222,2]
[361091347,1747248642268,-400.0,0.00011222,2]
[361091348,1747248642278,-400.0,0.00011222,2]
[361091349,1747248642288,-450.15,0.00011222,2]
[361091350,1747248642297,-400.0,0.00011222,2]
[361091351,1747248642309,-400.0,0.00011222,2]
[361091352,1747248642318,-400.0,0.00011222,2]
[361091353,1747248642328,-400.0,0.00011222,2]
[361091354,1747248642338,-475.85,0.00011222,2]
[361091355,1747248642350,-400.0,0.00011222,2]
[361091356,1747248642361,-400.0,0.00011222,2]
[361091357,1747248642371,-637.02,0.00011222,2]
[361091358,1747248642381,-180.26975551,0.00011222,2]
[361091359,1747248642395,-219.73024449,0.00011222,2]
[361091360,1747248642407,-773.44917841,0.00011222,2]
[361091361,1747248642418,-227.35082159,0.00011222,2]
[361091362,1747248642428,-400.0,0.00011222,2]
[361091363,1747248642437,-400.0,0.00011222,2]
[361091364,1747248642447,-400.0,0.00011222,2]
[361091365,1747248642456,-576.28,0.00011222,2]
[361091366,1747248642467,-464.94121186,0.00011222,2]
[361091367,1747248642476,-400.0,0.00011222,2]
[361091368,1747248642486,-400.0,0.00011222,2]
[361091369,1747248642496,-437.99,0.00011222,2]
[361091370,1747248642506,-400.0,0.00011222,2]
[361091371,1747248642516,-400.0,0.00011222,2]
[361091372,1747248642526,-652.69,0.00011222,2]
[361091373,1747248642535,-176.33879356,0.00011222,2]
[361091374,1747248642545,-400.0,0.00011222,2]
[361091375,1747248642555,-400.0,0.00011222,2]
[361091376,1747248642566,-400.0,0.00011222,2]
[361091377,1747248642577,-424.71,0.00011222,2]
[361091378,1747248642586,-400.0,0.00011222,2]
[361091379,1747248642596,-400.0,0.00011222,2]
[361091380,1747248642605,-400.0,0.00011222,2]
[361091381,1747248642615,-400.0,0.00011222,2]
[361091382,1747248642625,-400.0,0.00011222,2]
[361091383,1747248642634,-400.0,0.00011222,2]
[361091384,1747248642646,-400.0,0.00011222,2]
[361091385,1747248642657,-206.24169963,0.00011222,2]
[361091386,1747248642670,-400.0,0.00011222,2]
[361091387,1747248642681,-400.0,0.00011222,2]
[361091388,1747248642693,-400.0,0.00011222,2]
[361091389,1747248642707,-400.0,0.00011222,2]
[361091390,1747248642718,-400.0,0.00011222,2]
[361091391,1747248642729,-400.0,0.00011222,2]
[361091392,1747248642738,-400.0,0.00011222,2]
[361091393,1747248642747,-400.0,0.00011222,2]
[361091394,1747248642757,-400.0,0.00011222,2]
[361091395,1747248642766,-744.12,0.00011222,2]
[361091396,1747248642777,-978.98,0.00011222,2]
[361091397,1747248642790,-400.0,0.00011222,2]
[361091398,1747248642799,-400.0,0.00011222,2]
[361091399,1747248642808,-400.0,0.00011222,2]
[361091400,1747248642818,-400.0,0.00011222,2]
[361091401,1747248642827,-400.0,0.00011222,2]
[361091402,1747248642836,-400.0,0.00011222,2]
[361091403,1747248642846,-400.0,0.00011222,2]
[361091404,1747248642855,-521.69,0.00011222,2]
[361091405,1747248642865,-400.0,0.00011222,2]
[361091406,1747248642874,-400.0,0.00011222,2]
[361091407,1747248642884,-400.0,0.00011222,2]
[361091408,1747248642894,-400.0,0.00011222,2]
[361091409,1747248642903,-400.0,0.00011222,2]
[361091410,1747248642913,-400.0,0.00011222,2]
[361091411,1747248642923,-400.0,0.00011222,2]
[361091412,1747248642933,-400.0,0.00011222,2]
[361091413,1747248642942,-151.0,0.00011222,2]
[361091414,1747248642952,-500.0,0.00011222,2]
[361091415,1747248642961,-151.0,0.00011222,2]
[361091416,1747248642971,-151.0,0.00011222,2]
[361091417,1747248642981,-151.0,0.00011222,2]
[361091418,1747248642990,-151.0,0.00011222,2]
[361091419,1747248643000,-4000.0,0.00011233,2]
[361091420,1747248643010,-10189.0476573,0.0001124,2]
[361091421,1747248643020,-14047.72666207,0.00011243,2]
[361091422,1747248643030,-151.148592,0.00011243,2]
[361091423,1747248643039,-151.0,0.00011243,2]
[361091424,1747248643048,-151.917306,0.00011243,2]
[361091425,1747248643058,-151.0,0.00011243,2]
[361091426,1747248643067,-157.120019,0.00011243,2]
[361091428,1747248643077,-151.0,0.00011243,2]
[361091429,1747248643087,-157.120019,0.00011243,2]
[361091430,1747248643096,-151.0,0.00011243,2]
[361091431,1747248643105,-151.0,0.00011243,2]
[361091432,1747248643115,-201.039143,0.00011243,2]
[361091433,1747248643125,-201.039143,0.00011243,2]
[361091434,1747248643134,-430.552099,0.00011243,2]
[361091435,1747248643144,-430.552099,0.00011243,2]
[361091436,1747248643153,-151.0,0.00011244,2]
[361091437,1747248643163,-151.0,0.00011244,2]
[361091438,1747248643172,-151.0,0.00011244,2]
[361091439,1747248643181,-151.0,0.00011244,2]
[361091440,1747248643191,-151.0,0.00011244,2]
[361091441,1747248643201,-151.0,0.00011244,2]
[361091442,1747248643210,-151.0,0.00011244,2]
[361091443,1747248643219,-4656.256275,0.00011244,2]
[361091444,1747248643229,-1086.82148032,0.00011265,2]
[361091445,1747248643238,-200.0,0.0001129,2]
[361091446,1747248643247,-151.0,0.00011336,2]
[361091447,1747248643256,-155.206544,0.00011336,2]
[361091448,1747248643266,-132.4269792,0.00011336,2]
[361091449,1747248643287,-364.69,0.00010107,2]
[361091450,1747248643296,-18.5730208,0.00011336,2]
[361091451,1747248643305,-10189.0476573,0.0001134,2]
[361091452,1747248643314,-7258.74486632,0.00011365,2]
[361091453,1747248643335,-1398.354,0.00011365,2]
[361091454,1747248643350,-2083.66138651,0.00011365,2]
[361091455,1747248643361,-3229.25396911,0.00011365,2]
[361091456,1747248643372,-77.71244013,0.00011365,2]
[361091457,1747248643382,-151.0,0.00011365,2]
[361091458,1747248643391,-151.0,0.00011365,2]
[361091459,1747248643400,-151.0,0.00011365,2]
[361091460,1747248643409,-151.0,0.00011365,2]
[361091461,1747248643419,-187.232161,0.00011365,2]
[361091462,1747248643430,-309.746688,0.00011365,2]
[361091463,1747248643439,-309.746688,0.00011365,2]
[361091464,1747248643449,-610.087662,0.00011365,2]
[361091465,1747248643459,-610.087662,0.00011365,2]
[361091466,1747248643468,-151.0,0.00011365,2]
[361091467,1747248643477,-475.38669889,0.00011365,2]
[361091469,1747248643555,-342.74130211,0.00011365,2]
[361091470,1747248643568,-818.128001,0.00011365,2]
[361091471,1747248643578,-1361.207812,0.00011365,2]
[361091472,1747248643589,-1361.207812,0.00011365,2]
[361091473,1747248643600,-513.26936227,0.00011373,2]
[361091474,1747248643610,-151.0,0.0001138,2]
[361091475,1747248643619,-151.0,0.0001138,2]
[361091476,1747248643628,-151.0,0.0001138,2]
[361091477,1747248643638,-583.746791,0.0001138,2]
[361091478,1747248643647,-583.746791,0.0001138,2]
[361091479,1747248643656,-151.0,0.0001138,2]
[361091480,1747248643665,-196.833438,0.0001138,2]
[361091482,1747248643675,-1305.0,0.0001138,2]
[361091484,1747248643685,-931.0,0.0001138,2]
[361091485,1747248643694,-628.0,0.0001138,2]
[361091486,1747248643707,-798.0,0.0001138,2]
[361091487,1747248643717,-598.099,0.0001138,2]
[361091488,1747248643726,-553.0,0.0001138,2]
[361091489,1747248643735,-919.0,0.0001138,2]
[361091490,1747248643745,-1251.0,0.0001138,2]
[361091491,1747248643755,-1457.0,0.0001138,2]
[361091492,1747248643764,-950.593,0.0001138,2]
[361091495,1747248643778,-150.0,0.0001138,2]
[361091497,1747248643789,-837.0,0.0001138,2]
[361091499,1747248643800,-4032.0,0.0001138,2]
[361091500,1747248643809,-6822.0,0.0001138,2]
[361091501,1747248643818,-154.0,0.0001138,2]
[361091502,1747248643828,-200.0,0.00011384,2]
[361091503,1747248643837,-338.2747151,0.00011397,2]
[361091504,1747248643846,-150.0,0.00011401,2]
[361091505,1747248643856,-1000.0,0.00011416,2]
[361091506,1747248643866,-150.0,0.00011417,2]
[361091507,1747248643875,-1298.9986469,0.00011421,2]
[361091508,1747248643884,-491.6423,0.00011422,2]
[361091509,1747248643892,-10189.0476573,0.00011441,2]
[361091510,1747248643901,-500.0,0.00011471,2]
[361091511,1747248643910,-500.0,0.00011471,2]
[361091512,1747248643920,-751.8,0.00011471,2]
[361091513,1747248643929,-500.0,0.00011471,2]
[361091514,1747248643939,-8927.1275105,0.00011472,2]
[361091515,1747248643948,-110419.15919368,0.00011472,2]
[361091516,1747248643960,-19002.70835175,0.00011472,2]
[361091517,1747248643981,-364.69,0.00010109,2]
[361091518,1747248643991,-9851.31,0.00011472,2]
[361091519,1747248644407,-364.69,0.00010112,2]
[361091520,1747248644417,-364.69,0.00010115,2]
[361091521,1747248644426,-400.0,0.00011219,2]
[361091522,1747248644435,-400.0,0.00011221,2]
[361091523,1747248644444,-1086.82148032,0.0001133,2]
[361091524,1747248644454,-19559.73932937,0.00011472,2]
[361091525,1747248644463,-5375.3935352,0.00011472,2]
[361091526,1747248644472,-4030.0649429,0.00011472,2]
[361091527,1747248644481,-151.0,0.00011472,2]
[361091528,1747248644490,-151.0,0.00011472,2]
[361091529,1747248644500,-152.058715,0.00011472,2]
[361091530,1747248644510,-253.334459,0.00011472,2]
[361091531,1747248644519,-151.0,0.00011472,2]
[361091532,1747248644528,-152.281974,0.00011472,2]
[361091533,1747248644538,-151.0,0.00011472,2]
[361091534,1747248644547,-151.0,0.00011472,2]
[361091535,1747248644556,-151.0,0.00011472,2]
[361091536,1747248644564,-151.0,0.00011472,2]
[361091537,1747248644574,-151.0,0.00011472,2]
[361091538,1747248644583,-309.746688,0.00011472,2]
[361091539,1747248644592,-309.746688,0.00011472,2]
[361091540,1747248644601,-610.087662,0.00011472,2]
[361091541,1747248644610,-610.087662,0.00011472,2]
[361091542,1747248644619,-151.0,0.00011472,2]
[361091543,1747248644629,-154.706968,0.00011472,2]
[361091544,1747248644638,-818.128001,0.00011472,2]
[361091545,1747248644647,-818.128001,0.00011472,2]
[361091546,1747248644656,-1361.207812,0.00011472,2]
[361091547,1747248644665,-1361.207812,0.00011472,2]
[361091548,1747248644674,-151.0,0.00011472,2]
[361091549,1747248644683,-151.0,0.00011472,2]
[361091550,1747248644692,-151.0,0.00011472,2]
[361091551,1747248644705,-151.0,0.00011472,2]
[361091552,1747248644715,-151.0,0.00011472,2]
[361091553,1747248644726,-4489.23012157,0.00011472,2]
[361091554,1747248644820,-252.545508,0.00011221,2]
[361091555,1747248644831,-35.4412439,0.00011221,2]
[361091556,1747248644840,-167.02615343,0.00011472,2]
[361091557,1747248644851,-157.120019,0.00011472,2]
[361091558,1747248644862,-151.0,0.00011472,2]
[361091559,1747248644871,-157.120019,0.00011472,2]
[361091560,1747248644883,-151.0,0.00011472,2]
[361091561,1747248644893,-151.0,0.00011472,2]
[361091562,1747248644903,-151.0,0.00011472,2]
[361091563,1747248644912,-151.0,0.00011472,2]
[361091564,1747248644922,-151.0,0.00011472,2]
[361091565,1747248644932,-201.039143,0.00011472,2]
[361091566,1747248644942,-151.0,0.00011472,2]
[361091567,1747248644952,-201.039143,0.00011472,2]
[361091568,1747248644962,-151.0,0.00011472,2]
[361091569,1747248644971,-430.552099,0.00011472,2]
[361091570,1747248644980,-151.0,0.00011472,2]
[361091571,1747248644990,-430.552099,0.00011472,2]
[361091572,1747248645001,-583.746791,0.00011472,2]
[361091573,1747248645010,-583.746791,0.00011472,2]
[361091574,1747248645019,-151.0,0.00011472,2]
[361091575,1747248645029,-500.0,0.00011473,2]
[361091576,1747248645038,-515.39672217,0.00011473,2]
[361091577,1747248645048,-500.0,0.00011473,2]
[361091578,1747248645057,-500.0,0.00011473,2]
[361091579,1747248645066,-151.0,0.00011473,2]
[361091580,1747248645075,-151.0,0.00011473,2]
[361091581,1747248645084,-151.0,0.00011473,2]
[361091582,1747248645094,-151.0,0.00011473,2]
[361091583,1747248645104,-151.0,0.00011473,2]
[361091584,1747248645113,-151.0,0.00011473,2]
[361091585,1747248645123,-151.0,0.00011473,2]
[361091586,1747248645132,-200.0,0.00011473,2]
[361091587,1747248645142,-282.78754391,0.00011479,2]
[361091588,1747248645151,-875.45093121,0.00011479,2]
[361091589,1747248645161,-1173.0,0.00011479,2]
[361091590,1747248645170,-851.5833312,0.0001148,2]
[361091591,1747248645180,-716.92085629,0.00011485,2]
[361091592,1747248645189,-14047.72666207,0.00011486,2]
[361091593,1747248645198,-151.0,0.00011488,2]
[361091594,1747248645207,-151.0,0.00011488,2]
[361091595,1747248645216,-151.0,0.00011488,2]
[361091596,1747248645227,-151.0,0.00011488,2]
[361091597,1747248645236,-400.0,0.00011493,2]
[361091598,1747248645247,-455.39,0.00011493,2]
[361091599,1747248645257,-400.0,0.00011493,2]
[361091600,1747248645266,-460.73,0.00011493,2]
[361091601,1747248645275,-400.0,0.00011493,2]
[361091602,1747248645284,-400.0,0.00011493,2]
[361091603,1747248645295,-400.0,0.00011493,2]
[361091604,1747248645305,-872.78,0.00011493,2]
[361091605,1747248645317,-4569.51,0.00011493,2]
[361091606,1747248645327,-400.0,0.00011493,2]
[361091607,1747248645337,-177.38925559,0.00011493,2]
[361091608,1747248645347,-400.0,0.00011493,2]
[361091609,1747248645358,-603.73,0.00011493,2]
[361091610,1747248645367,-400.0,0.00011493,2]
[361091611,1747248645376,-613.82,0.00011493,2]
[361091612,1747248645386,-153.91261671,0.00011493,2]
[361091613,1747248645397,-1610.02,0.00011493,2]
[361091614,1747248645407,-181.09905809,0.00011493,2]
[361091615,1747248645417,-400.0,0.00011493,2]
[361091616,1747248645426,-631.13,0.00011493,2]
[361091617,1747248645436,-400.0,0.00011493,2]
[361091618,1747248645446,-400.0,0.00011493,2]
[361091619,1747248645456,-705.08,0.00011493,2]
[361091620,1747248645465,-536.38,0.00011493,2]
[361091621,1747248645475,-400.0,0.00011493,2]
[361091622,1747248645486,-1187.84,0.00011493,2]
[361091623,1747248645498,-400.0,0.00011493,2]
[361091624,1747248645507,-478.17,0.00011493,2]
[361091625,1747248645516,-1038.58,0.00011493,2]
[361091626,1747248645528,-400.0,0.00011493,2]
[361091627,1747248645538,-736.13,0.00011493,2]
[361091628,1747248645551,-1160.286736,0.00011493,2]
[361091629,1747248645560,-3708.05472633,0.00011493,2]
[361091630,1747248645572,-964.30527367,0.00011493,2]
[361091631,1747248645581,-401.30690591,0.00011493,2]
[361091632,1747248645590,-542.58033303,0.00011493,2]
[361091633,1747248645599,-400.0,0.00011494,2]
[361091634,1747248645609,-135.87523556,0.00011494,2]
[361091657,1747248646198,-411.08991003,0.00011219,2]
[361091658,1747248646207,-32.79190815,0.00011219,2]
[361091662,1747248647079,-367.20809185,0.00011219,2]
[361091663,1747248647089,-400.0,0.00011219,2]
[361091664,1747248647098,-400.0,0.00011219,2]
[361091665,1747248647109,-400.0,0.00011219,2]
[361091666,1747248647120,-400.0,0.0001122,2]
[361091667,1747248647130,-1103.88,0.0001122,2]
[361091668,1747248647141,-400.0,0.0001122,2]
[361091669,1747248647152,-406.5611586,0.0001122,2]
[361091670,1747248647161,-400.0,0.00011221,2]
[361091671,1747248647172,-400.0,0.00011221,2]
[361091672,1747248647183,-250.183,0.0001138,2]
[361091673,1747248647194,-1086.82148032,0.00011395,2]
[361091674,1747248647203,-368.14,0.00011493,2]
[361091675,1747248647214,-368.48623998,0.00011493,2]
[361091676,1747248647223,-364.12476444,0.00011494,2]
[361091677,1747248647233,-400.0,0.00011494,2]
[361091678,1747248647245,-400.0,0.00011494,2]
[361091679,1747248647256,-400.0,0.00011494,2]
[361091680,1747248647267,-400.0,0.00011494,2]
[361091681,1747248647279,-400.0,0.00011494,2]
[361091682,1747248647290,-3247.850427,0.00011494,2]
[361091683,1747248647300,-2748.303333,0.00011494,2]
[361091684,1747248647309,-400.0,0.00011494,2]
[361091685,1747248647319,-400.0,0.00011494,2]
[361091686,1747248647329,-400.0,0.00011494,2]
[361091687,1747248647338,-400.0,0.00011494,2]
[361091688,1747248647348,-250.0,0.00011494,2]
[361091689,1747248647358,-400.0,0.00011494,2]
[361091690,1747248647367,-400.0,0.00011494,2]
[361091691,1747248647376,-400.0,0.00011494,2]
[361091692,1747248647385,-435.33,0.00011494,2]
[361091693,1747248647395,-400.0,0.00011494,2]
[361091694,1747248647404,-400.0,0.00011494,2]
[361091695,1747248647414,-426.38,0.00011494,2]
[361091696,1747248647424,-422.40736321,0.00011494,2]
[361091697,1747248647433,-3525.38,0.00011494,2]
[361091698,1747248647443,-400.0,0.00011494,2]
[361091699,1747248647453,-400.0,0.00011494,2]
[361091700,1747248647462,-400.0,0.00011494,2]
[361091701,1747248647472,-867.22,0.00011494,2]
[361091702,1747248647482,-400.0,0.00011494,2]
[361091703,1747248647491,-400.0,0.00011494,2]
[361091704,1747248647501,-1872.81,0.00011494,2]
[361091705,1747248647511,-377.82795749,0.00011494,2]
[361091706,1747248647521,-400.0,0.00011494,2]
[361091707,1747248647531,-1025.08,0.00011494,2]
[361091708,1747248647540,-400.0,0.00011494,2]
[361091709,1747248647550,-400.0,0.00011494,2]
[361091710,1747248647560,-400.0,0.00011494,2]
[361091711,1747248647570,-400.0,0.00011494,2]
[361091712,1747248647579,-941.81,0.00011494,2]
[361091713,1747248647589,-1055.71,0.00011494,2]
[361091714,1747248647599,-400.0,0.00011494,2]
[361091715,1747248647609,-400.0,0.00011494,2]
[361091716,1747248647619,-400.0,0.00011494,2]
[361091717,1747248647629,-400.0,0.00011494,2]
[361091718,1747248647639,-400.0,0.00011494,2]
[361091719,1747248647649,-240.52305196,0.00011494,2]
[361091720,1747248647659,-400.0,0.00011494,2]
[361091721,1747248647669,-400.0,0.00011494,2]
[361091722,1747248647679,-400.0,0.00011494,2]
[361091723,1747248647689,-1379.24,0.00011494,2]
[361091724,1747248647700,-479.6,0.00011494,2]
[361091725,1747248647711,-243.78,0.00011494,2]
[361091726,1747248647720,-400.0,0.00011494,2]
[361091727,1747248647731,-400.0,0.00011494,2]
[361091728,1747248647740,-400.0,0.00011494,2]
[361091729,1747248647751,-1149.53,0.00011494,2]
[361091730,1747248647762,-716.38,0.00011494,2]
[361091731,1747248647772,-400.0,0.00011494,2]
[361091732,1747248647783,-400.0,0.00011494,2]
[361091733,1747248647793,-400.0,0.00011494,2]
[361091734,1747248647804,-173.61569127,0.00011494,2]
[361091735,1747248648706,-226.38430873,0.00011494,2]
[361091736,1747248648716,-484.09,0.00011494,2]
[361091737,1747248648726,-751.8,0.00011494,2]
[361091738,1747248648736,-400.0,0.00011494,2]
[361091739,1747248648747,-400.0,0.00011494,2]
[361091740,1747248648758,-400.0,0.00011494,2]
[361091741,1747248648767,-641.06,0.00011494,2]
[361091742,1747248648777,-400.0,0.00011494,2]
[361091743,1747248648787,-400.0,0.00011494,2]
[361091744,1747248648797,-990.28,0.00011494,2]
[361091745,1747248648806,-400.0,0.00011494,2]
[361091746,1747248648816,-400.0,0.00011494,2]
[361091747,1747248648825,-400.0,0.00011494,2]
[361091748,1747248648835,-475.80733155,0.00011494,2]
[361091749,1747248648845,-411.03952964,0.00011494,2]
[361091750,1747248648854,-400.0,0.00011494,2]
[361091751,1747248648864,-1611.3,0.00011494,2]
[361091752,1747248648873,-400.0,0.00011494,2]
[361091753,1747248648883,-407.78388841,0.00011494,2]
[361091754,1747248648893,-218.73696914,0.00011494,2]
[361091755,1747248648905,-181.26303086,0.00011494,2]
[361091756,1747248648915,-400.0,0.00011494,2]
[361091757,1747248648926,-400.0,0.00011494,2]
[361091758,1747248648936,-400.0,0.00011494,2]
[361091759,1747248648946,-922.13,0.00011494,2]
[361091760,1747248648956,-5033.24196914,0.00011494,2]
[361091761,1747249086618,150.0,0.00010303,7]
[361091762,1747249216567,450.0,0.0001,2]
[361091763,1747249380556,512.18,8.241e-05,2]
[361091766,1747249712830,666.0,0.0002,30]
[361091768,1747249770227,666.0,0.0002,30]
[361091823,1747249832920,-1000.0,0.00010112,2]
[361091825,1747249832930,-19.44677926,0.00010133,2]
[361091827,1747249832941,-180.55322074,0.00010133,2]
[361091829,1747249832950,-127.95877426,0.00010153,2]
[361091833,1747249832979,-72.04122574,0.00010153,2]
[361091834,1747249832987,-159.67,0.00010178,2]
[361091835,1747249832996,-740.03717196,0.00010276,2]
[361091836,1747249833007,-520.28391676,0.00010276,2]
[361091837,1747249833022,-3154.58891128,0.00010276,2]
[361091838,1747249833031,-166.0,0.00010304,2]
[361091839,1747249833040,-300.0,0.00010304,2]
[361091840,1747249833049,-300.0,0.00010305,2]
[361091841,1747249833059,-1200.0,0.00010305,2]
[361091842,1747249833068,-3448.71,0.00010306,2]
[361091843,1747249833077,-248.28,0.00010351,2]
[361091844,1747249833086,-179.67,0.00010351,2]
[361091845,1747249833096,-512.18,0.00010505,2]
[361091846,1747249833105,-5600.0,0.000106,3]
[361091847,1747249833114,-11200.0,0.000107,3]
[361091848,1747249833123,-16900.0,0.000108,3]
[361091849,1747249833132,-22500.0,0.000109,3]
[361091850,1747249833142,-8121.60090201,0.000109,2]
[361091852,1747249833152,-500.0,0.00010986,2]
[361091854,1747249833162,-200.0,0.00011068,2]
[361091856,1747249833172,-250.0,0.00011068,2]
[361091858,1747249833181,-207.4,0.00011092,2]